bitfinex/quotes_ETHUSD_20230110
["timestamp","ask_amount","ask_price","bid_price","bid_amount"]
[1673350816773,14.94712064,1329.9,1329.8,0.7371659]
[1673350817403,22.46648064,1329.9,1329.8,0.7371659]
[1673350818591,22.46648064,1329.9,1329.8,0.73397522]
[1673350820627,29.98584064,1329.9,1329.8,0.73397522]
[1673350823910,33.57256677,1329.9,1329.8,0.73397522]
[1673350824117,36.37381248,1329.9,1329.8,0.73397522]
[1673350828456,36.37494903,1329.9,1329.8,0.73397522]
[1673350828667,36.53334957,1329.9,1329.8,0.73397522]
[1673350833368,33.73210386,1329.9,1329.8,0.73397522]
[1673350833617,36.53334957,1329.9,1329.8,0.73397522]
[1673350834460,40.96099629,1329.9,1329.8,0.73397522]
[1673350834633,36.76334957,1329.9,1329.8,0.73397522]
[1673350834848,40.96099629,1329.9,1329.8,0.73397522]
[1673350836736,38.72313361,1329.9,1329.8,0.73397522]
[1673350837602,40.96060437,1329.9,1329.8,0.73397522]
[1673350837763,36.76295765,1329.9,1329.8,0.73397522]
[1673350837983,34.52548689,1329.9,1329.8,0.73397522]
[1673350838189,36.76298337,1329.9,1329.8,0.73397522]
[1673350838425,38.72313361,1329.9,1329.8,0.73397522]
[1673350839027,34.86948689,1329.9,1329.8,0.73397522]
[1673350840226,39.06713361,1329.9,1329.8,0.73397522]
[1673350840440,34.86948689,1329.9,1329.8,0.73397522]
[1673350841573,39.06713361,1329.9,1329.8,0.73397522]
[1673350841765,36.2658879,1329.9,1329.8,0.73397522]
[1673350842363,36.2658879,1329.9,1329.8,0.73078382]
[1673350843387,39.06407057,1329.9,1329.8,0.73078382]
[1673350844579,36.2658879,1329.9,1329.8,0.73078382]
[1673350845157,39.06495997,1329.9,1329.8,0.73078382]
[1673350846569,36.2658879,1329.9,1329.8,0.73078382]
[1673350846784,39.06496891,1329.9,1329.8,0.73078382]
[1673350847168,36.2636778,1329.9,1329.8,0.73078382]
[1673350847396,39.06273386,1329.9,1329.8,0.73078382]
[1673350847580,34.86508714,1329.9,1329.8,0.73078382]
[1673350848105,39.06273386,1329.9,1329.8,0.73078382]
[1673350848315,34.86508714,1329.9,1329.8,0.73078382]
[1673350849609,39.06273386,1329.9,1329.8,0.73078382]
[1673350849781,34.86508714,1329.9,1329.8,0.73078382]
[1673350849992,8.91520232,1329.9,1329.8,0.73078382]
[1673350850239,2.46382048,1329.9,1329.8,0.73078382]
[1673350850446,2.23941994,1329.9,1329.8,8.25070382]
[1673350850656,2.23941994,1329.9,1329.8,2.39667691]
[1673350850853,2.23941994,1329.9,1329.8,2.33067691]
[1673350851270,2.23941994,1329.9,1329.8,17.37051691]
[1673350851485,2.23941994,1329.9,1329.8,9.91659691]
[1673350851722,2.23941994,1329.9,1329.8,2.39667691]
[1673350851898,2.23941994,1329.9,1329.8,2.33067691]
[1673350852985,2.23941994,1329.9,1329.8,17.37051691]
[1673350853197,2.23941994,1329.9,1329.8,17.43651691]
[1673350854097,2.24141994,1329.9,1329.8,17.43451691]
[1673350854464,2.23941994,1329.9,1329.8,17.43651691]
[1673350855209,2.23941994,1329.9,1329.8,9.91659691]
[1673350855561,2.23941994,1329.9,1329.8,11.61959691]
[1673350858862,2.23941994,1329.9,1329.8,19.13951691]
[1673350859070,2.23941994,1329.9,1329.8,26.65943691]
[1673350859301,2.23941994,1329.9,1329.8,19.13951691]
[1673350859706,2.23941994,1329.9,1329.8,11.61959691]
[1673350860258,2.23941994,1329.9,1329.8,21.63951691]
[1673350860624,2.23941994,1329.9,1329.8,19.13951691]
[1673350860835,2.23941994,1329.9,1329.8,11.61959691]
[1673350861912,2.23941994,1329.9,1329.8,19.13951691]
[1673350862147,2.23941994,1329.9,1329.8,11.61959691]
[1673350862725,2.23941994,1329.9,1329.8,20.84051691]
[1673350863198,2.23941994,1329.9,1329.8,28.36043691]
[1673350865260,2.23941994,1329.9,1329.8,20.84051691]
[1673350865770,2.23941994,1329.9,1329.8,5.80067691]
[1673350866189,2.23941994,1329.9,1329.8,4.20078382]
[1673350866435,2.23941994,1329.9,1329.8,4.13478382]
[1673350869355,2.23941994,1329.9,1329.8,0.73078382]
[1673350871455,2.24141994,1329.9,1329.8,0.73078382]
[1673350871670,2.23941994,1329.9,1329.8,0.72747734]
[1673350875511,9.75877994,1329.9,1329.8,0.72747734]
[1673350875719,2.30541994,1329.9,1329.8,0.72747734]
[1673350875931,9.75877994,1329.9,1329.8,0.72747734]
[1673350876150,2.30541994,1329.9,1329.8,0.72747734]
[1673350876453,2.23941994,1329.9,1329.8,0.72747734]
[1673350876669,6.03708058,1329.9,1329.8,0.72747734]
[1673350876846,6.10308058,1329.9,1329.8,0.72747734]
[1673350878984,6.10308058,1329.9,1329.8,8.24739734]
[1673350879187,6.10308058,1329.9,1329.8,10.67159079]
[1673350879398,6.10308058,1329.9,1329.8,3.15167079]
[1673350879576,6.10308058,1329.9,1329.8,3.08567079]
[1673350879765,2.30541994,1329.9,1329.8,3.08567079]
[1673350879982,2.23941994,1329.9,1329.8,27.34843079]
[1673350880205,2.23941994,1329.9,1329.8,29.28034409]
[1673350880459,2.23941994,1329.9,1329.8,31.78034409]
[1673350881153,2.23941994,1329.9,1329.8,12.01938271]
[1673350881349,2.23941994,1329.9,1329.8,16.74050409]
[1673350882091,2.23941994,1329.9,1329.8,24.26042409]
[1673350884417,2.23941994,1329.9,1329.8,21.76046893]
[1673350887600,2.23941994,1329.9,1329.8,14.24054893]
[1673350888639,2.23941994,1329.9,1329.8,30.40490039]
[1673350888964,2.23941994,1329.9,1329.8,15.36506039]
[1673350889140,0.066,1330.1,1329.9,2.5]
[1673350889352,0.066,1330.3,1330.0,23.68266489]
[1673350889591,2.24020969,1330.4,1330.1,1.86595814]
[1673350889910,2.24020969,1330.4,1330.1,4.36595814]
[1673350889911,0.5639,1330.4,1330.1,4.36595814]
[1673350890068,0.5639,1330.4,1330.1,5.3866742]
[1673350890280,0.5639,1330.4,1330.1,15.76954282]
[1673350890520,0.5639,1330.4,1330.1,14.6737442]
[1673350891648,3.79766064,1330.4,1330.1,12.1737442]
[1673350892203,3.79766064,1330.4,1330.1,10.4707442]
[1673350892381,3.79766064,1330.4,1330.1,17.9889742]
[1673350892727,3.79766064,1330.4,1330.1,20.78720574]
[1673350892938,3.79766064,1330.4,1330.1,28.30543574]
[1673350893328,3.79766064,1330.4,1330.1,20.78720574]
[1673350893744,3.79766064,1330.4,1330.1,17.9889742]
[1673350894388,3.79766064,1330.4,1330.1,25.5072042]
[1673350897446,11.37657186,1330.4,1330.1,2.8866742]
[1673350897852,18.89315186,1330.4,1330.1,2.8866742]
[1673350900714,26.40973186,1330.4,1330.1,2.8866742]
[1673350901920,26.40973186,1330.4,1330.0,21.5398]
[1673350902205,7.51766,1330.2,1330.0,21.5398]
[1673350902423,7.51766,1330.2,1330.0,0.066]
[1673350902424,7.51966,1330.2,1330.0,0.066]
[1673350902590,7.58366,1330.2,1329.9,4.69782505]
[1673350902998,7.58366,1330.2,1329.9,3.94570604]
[1673350903473,0.066,1330.2,1329.9,11.46484604]
[1673350903627,19.46228064,1330.3,1329.9,11.53084604]
[1673350904481,11.94482064,1330.3,1329.9,14.3294512]
[1673350904698,11.94482064,1330.3,1329.9,21.8488112]
[1673350905591,4.42766064,1330.3,1329.9,29.3681712]
[1673350905811,4.36166064,1330.3,1329.9,30.49446609]
[1673350906195,0.564,1330.3,1329.9,30.49446609]
[1673350908332,26.72495,1330.4,1329.9,30.49446609]
[1673350908550,30.52261064,1330.4,1329.9,30.49446609]
[1673350911281,38.03969064,1330.4,1329.9,22.97510609]
[1673350911606,3.79766064,1330.3,1329.9,7.93660609]
[1673350911776,18.83208064,1330.3,1329.9,5.1213112]
[1673350911988,26.41573064,1330.3,1329.9,2.32270604]
[1673350912199,26.41573064,1330.3,1329.9,2.25670604]
[1673350913096,7.51823,1330.1,1329.8,12.1945898]
[1673350913227,7.51823,1330.1,1329.8,0.79347734]
[1673350913228,0.5641,1330.0,1329.8,0.79347734]
[1673350913437,3.0641,1330.0,1329.8,0.72747734]
[1673350913764,8.08301,1330.0,1329.8,0.72747734]
[1673350913979,24.88971,1330.0,1329.8,0.72747734]
[1673350915663,28.68737064,1330.0,1329.8,0.72747734]
[1673350919378,13.64955064,1330.0,1329.8,0.72747734]
[1673350919584,6.13076064,1330.0,1329.8,0.72747734]
[1673350919775,2.3331,1330.0,1329.8,0.72747734]
[1673350919991,5.2671,1330.0,1329.8,0.72747734]
[1673350920235,5.3331,1330.0,1329.8,0.72747734]
[1673350921760,31.68713064,1330.0,1329.8,0.72747734]
[1673350924999,3.79766064,1329.9,1329.8,0.72747734]
[1673350925470,28.05874064,1329.9,1329.8,0.72747734]
[1673350925624,37.57257388,1329.9,1329.8,0.72747734]
[1673350925841,37.80257388,1329.9,1329.8,0.72747734]
[1673350926470,37.57257388,1329.9,1329.8,0.72747734]
[1673350927696,37.80257388,1329.9,1329.8,0.72747734]
[1673350928832,33.61884064,1329.9,1329.8,0.72747734]
[1673350929620,9.36076064,1329.9,1329.8,0.72747734]
[1673350929826,9.13076064,1329.9,1329.8,0.72747734]
[1673350930250,16.65012064,1329.9,1329.8,0.72747734]
[1673350930669,24.16948064,1329.9,1329.8,0.72747734]
[1673350931245,16.65012064,1329.9,1329.8,0.72747734]
[1673350931579,24.16948064,1329.9,1329.8,0.72747734]
[1673350932874,16.65012064,1329.9,1329.8,0.72747734]
[1673350933341,24.16948064,1329.9,1329.8,0.72747734]
[1673350934082,16.65012064,1329.9,1329.8,0.72747734]
[1673350934509,31.68884064,1329.9,1329.8,0.72747734]
[1673350934667,24.16948064,1329.9,1329.8,0.72747734]
[1673350935976,16.65012064,1329.9,1329.8,0.72747734]
[1673350936136,9.13076064,1329.9,1329.8,0.72747734]
[1673350936613,16.65012064,1329.9,1329.8,0.72747734]
[1673350937284,24.16948064,1329.9,1329.8,0.72747734]
[1673350937709,5.3331,1329.9,1329.8,0.72747734]
[1673350938063,5.3331,1329.9,1329.8,0.72349533]
[1673350939197,12.85246,1329.9,1329.8,0.72349533]
[1673350939843,24.16948064,1329.9,1329.8,0.72349533]
[1673350940032,31.68884064,1329.9,1329.8,0.72349533]
[1673350940872,24.16948064,1329.9,1329.8,0.72349533]
[1673350942266,31.68884064,1329.9,1329.8,0.72349533]
[1673350943087,16.65012064,1329.9,1329.8,0.72349533]
[1673350943824,31.68884064,1329.9,1329.8,0.72349533]
[1673350944071,24.16948064,1329.9,1329.8,0.72349533]
[1673350944288,31.68884064,1329.9,1329.8,0.72349533]
[1673350945339,24.16948064,1329.9,1329.8,0.72349533]
[1673350949066,23.60538064,1329.9,1329.8,0.72349533]
[1673350949281,16.08602064,1329.9,1329.8,0.72349533]
[1673350949486,23.60538064,1329.9,1329.8,0.72349533]
[1673350952766,16.08602064,1329.9,1329.8,0.72349533]
[1673350953166,23.60538064,1329.9,1329.8,0.72349533]
[1673350953375,24.16948064,1329.9,1329.8,0.72349533]
[1673350956743,26.40969033,1329.9,1329.8,0.72349533]
[1673350957079,33.92905033,1329.9,1329.8,0.72349533]
[1673350957303,26.40969033,1329.9,1329.8,0.72349533]
[1673350958456,24.16948064,1329.9,1329.8,0.72349533]
[1673350958689,33.92905033,1329.9,1329.8,0.72349533]
[1673350959102,36.72820539,1329.9,1329.8,0.72349533]
[1673350959474,33.92905033,1329.9,1329.8,0.72349533]
[1673350959691,36.72820539,1329.9,1329.8,0.72349533]
[1673350960468,33.92905033,1329.9,1329.8,0.72349533]
[1673350961108,33.92905033,1329.9,1329.8,0.72025206]
[1673350961291,26.40969033,1329.9,1329.8,0.72025206]
[1673350961476,36.72820539,1329.9,1329.8,0.72025206]
[1673350961680,29.20884539,1329.9,1329.8,0.72025206]
[1673350961911,26.40969033,1329.9,1329.8,0.72025206]
[1673350963946,18.89033033,1329.9,1329.8,0.72025206]
[1673350964527,11.37097033,1329.9,1329.8,0.72025206]
[1673350966894,10.80687033,1329.9,1329.8,0.72025206]
[1673350971311,9.10387033,1329.9,1329.8,0.72025206]
[1673350971526,6.86366064,1329.9,1329.8,0.72025206]
[1673350972675,3.066,1329.9,1329.8,25.14611896]
[1673350972891,0.066,1330.0,1329.9,1.06562231]
[1673350973108,3.0,1330.0,1329.9,8.58498231]
[1673350973321,5.30620969,1330.1,1329.9,8.65098231]
[1673350973486,5.30620969,1330.1,1329.9,8.64898231]
[1673350973487,3.0,1330.0,1329.9,8.64898231]
[1673350973697,3.0,1330.0,1329.9,4.19334416]
[1673350973909,3.0,1330.0,1329.9,4.12734416]
[1673350975327,10.51879,1330.0,1329.9,4.12734416]
[1673350975644,31.66024033,1330.0,1329.9,1.06562231]
[1673350975802,36.16239539,1330.0,1329.9,1.06562231]
[1673350976220,36.16153065,1330.0,1329.9,1.06562231]
[1673350976641,33.9221857,1330.0,1329.9,1.06562231]
[1673350977059,37.00776388,1330.0,1329.9,1.06562231]
[1673350977585,37.57186388,1330.0,1329.9,1.06562231]
[1673350978050,33.38813064,1330.0,1329.9,1.06562231]
[1673350979789,36.18716978,1330.0,1329.9,1.06562231]
[1673350980955,36.18405663,1330.0,1329.9,1.06562231]
[1673350981169,21.14647663,1330.0,1329.9,1.06562231]
[1673350981418,23.38573772,1330.0,1329.9,1.06562231]
[1673350981889,30.90452772,1330.0,1329.9,1.06562231]
[1673350982101,23.38573772,1330.0,1329.9,1.06562231]
[1673350982567,36.18405663,1330.0,1329.9,1.06562231]
[1673350982783,28.66526663,1330.0,1329.9,1.06562231]
[1673350984256,30.90518926,1330.0,1329.9,1.06562231]
[1673350984754,30.34108926,1330.0,1329.9,1.06562231]
[1673350985072,37.85987926,1330.0,1329.9,1.06562231]
[1673350990137,35.61995663,1330.0,1329.9,1.06562231]
[1673350991536,15.30322761,1330.0,1329.9,1.06562231]
[1673350991744,22.82201761,1330.0,1329.9,1.06562231]
[1673350992367,20.02297847,1330.0,1329.9,1.06562231]
[1673350992579,22.82201761,1330.0,1329.9,1.06562231]
[1673350992954,20.02297847,1330.0,1329.9,1.06562231]
[1673350993523,20.02297847,1330.0,1329.8,0.72025206]
[1673350993742,1.703,1329.9,1329.8,0.72025206]
[1673350994776,36.15724761,1330.0,1329.8,0.72025206]
[1673350996566,2.23964098,1329.9,1329.8,0.72025206]
[1673350996984,9.75900098,1329.9,1329.8,0.72025206]
[1673350997152,10.58536,1329.9,1329.8,0.72025206]
[1673350998340,12.82500098,1329.9,1329.8,0.72025206]
[1673350999093,31.66138162,1329.9,1329.8,0.72025206]
[1673350999307,32.22548162,1329.9,1329.8,0.72025206]
[1673350999487,31.66138162,1329.9,1329.8,0.72025206]
[1673351001181,24.14202162,1329.9,1329.8,0.72025206]
[1673351001391,31.66138162,1329.9,1329.8,0.72025206]
[1673351001581,31.66138162,1329.9,1329.8,0.71784768]
[1673351001833,24.14202162,1329.9,1329.8,0.71784768]
[1673351002046,25.84502162,1329.9,1329.8,0.71784768]
[1673351002216,28.64406076,1329.9,1329.8,0.71784768]
[1673351002427,36.16342076,1329.9,1329.8,0.71784768]
[1673351002633,33.36438162,1329.9,1329.8,0.71784768]
[1673351004239,40.36033043,1329.9,1329.8,0.71784768]
[1673351004447,40.92443043,1329.9,1329.8,0.71784768]
[1673351005037,37.56157388,1329.9,1329.8,0.71784768]
[1673351005246,40.92443043,1329.9,1329.8,0.71784768]
[1673351005723,37.56157388,1329.9,1329.8,0.71784768]
[1673351007997,40.92443043,1329.9,1329.8,0.71784768]
[1673351008658,37.56157388,1329.9,1329.8,0.71784768]
[1673351009253,35.87257388,1329.9,1329.8,0.71784768]
[1673351009665,26.9648713,1329.9,1329.8,0.71784768]
[1673351009871,14.16251811,1329.9,1329.8,0.71784768]
[1673351010756,11.36712745,1329.9,1329.8,0.71784768]
[1673351011591,18.88648745,1329.9,1329.8,0.71784768]
[1673351012286,20.56375253,1329.9,1329.8,0.71784768]
[1673351012618,18.88648745,1329.9,1329.8,0.71784768]
[1673351013541,8.54105421,1329.9,1329.8,0.71784768]
[1673351014070,13.06041421,1329.9,1329.8,0.71784768]
[1673351015642,31.09913421,1329.9,1329.8,0.71784768]
[1673351018214,33.33550102,1329.9,1329.8,0.71784768]
[1673351020863,34.45349811,1329.9,1329.8,0.71784768]
[1673351021072,31.65810745,1329.9,1329.8,0.71784768]
[1673351022036,33.33570522,1329.9,1329.8,0.71784768]
[1673351023867,33.33570522,1329.9,1329.8,0.71422207]
[1673351024609,31.65810745,1329.9,1329.8,0.71422207]
[1673351025340,33.9034581,1329.9,1329.8,0.71422207]
[1673351025594,32.2171313,1329.9,1329.8,0.71422207]
[1673351026718,34.45396673,1329.9,1329.8,0.71422207]
[1673351027174,32.2171313,1329.9,1329.8,0.71422207]
[1673351027334,32.7812313,1329.9,1329.8,0.71422207]
[1673351027812,38.66796454,1329.9,1329.8,0.71422207]
[1673351027984,34.4842313,1329.9,1329.8,0.71422207]
[1673351029334,38.66796454,1329.9,1329.8,0.71422207]
[1673351029993,34.4842313,1329.9,1329.8,0.71422207]
[1673351030955,31.68884064,1329.9,1329.8,0.71422207]
[1673351031125,35.87257388,1329.9,1329.8,0.71422207]
[1673351031674,31.68884064,1329.9,1329.8,0.71422207]
[1673351033175,34.48480327,1329.9,1329.8,0.71422207]
[1673351033531,31.12474064,1329.9,1329.8,0.71422207]
[1673351033792,33.9208286,1329.9,1329.8,0.71422207]
[1673351034114,33.92077905,1329.9,1329.8,0.71422207]
[1673351037017,33.92128492,1329.9,1329.8,0.71422207]
[1673351037238,33.92125718,1329.9,1329.8,0.71422207]
[1673351038308,31.68884064,1329.9,1329.8,0.71422207]
[1673351038522,35.87257388,1329.9,1329.8,0.71422207]
[1673351039082,31.68884064,1329.9,1329.8,0.71422207]
[1673351041056,35.05169719,1329.9,1329.8,0.71422207]
[1673351041865,31.68884064,1329.9,1329.8,0.71422207]
[1673351042101,34.48575323,1329.9,1329.8,0.71422207]
[1673351042683,39.23543043,1329.9,1329.8,0.71422207]
[1673351042911,35.05169719,1329.9,1329.8,0.71422207]
[1673351043782,39.23543043,1329.9,1329.8,0.71422207]
[1673351044204,35.05169719,1329.9,1329.8,0.71422207]
[1673351045947,39.23543043,1329.9,1329.8,0.71422207]
[1673351046209,35.05169719,1329.9,1329.8,0.71422207]
[1673351046363,39.23543043,1329.9,1329.8,0.71422207]
[1673351047153,39.2276712,1329.9,1329.8,0.71422207]
[1673351047528,39.2276712,1329.9,1329.8,0.71035681]
[1673351047739,35.04393796,1329.9,1329.8,0.71035681]
[1673351054907,33.34093796,1329.9,1329.8,0.71035681]
[1673351059608,37.5246712,1329.9,1329.8,0.71035681]
[1673351059820,33.34093796,1329.9,1329.8,0.71035681]
[1673351063197,33.9033915,1329.9,1329.8,0.71035681]
[1673351063817,29.98584064,1329.9,1329.8,0.71035681]
[1673351064497,33.9033915,1329.9,1329.8,0.71035681]
[1673351065190,38.08712474,1329.9,1329.8,0.71035681]
[1673351065386,2.5,1329.8,1329.7,0.22817712]
[1673351065592,31.85742064,1329.8,1329.7,0.22817712]
[1673351065825,35.8409715,1329.8,1329.7,0.22817712]
[1673351066270,33.3409715,1329.8,1329.7,0.22817712]
[1673351067115,29.42342064,1329.8,1329.7,0.22817712]
[1673351067701,33.3409715,1329.8,1329.7,0.22817712]
[1673351069276,29.42342064,1329.8,1329.7,0.22817712]
[1673351069698,29.42342064,1329.8,1329.5,17.86557712]
[1673351069966,5.03635968,1329.6,1329.5,17.86557712]
[1673351070148,34.46317032,1329.6,1329.5,0.066]
[1673351070359,34.46317032,1329.6,1329.3,1.693]
[1673351070694,7.52219,1329.4,1329.3,3.82884839]
[1673351070904,15.11038,1329.4,1329.3,3.82884839]
[1673351072053,7.58819,1329.4,1329.3,3.82884839]
[1673351072535,18.90804064,1329.4,1329.3,3.82884839]
[1673351073167,11.38585064,1329.4,1329.3,3.82884839]
[1673351073638,3.86366064,1329.4,1329.3,3.82884839]
[1673351073791,11.53074121,1329.4,1329.3,3.82884839]
[1673351074001,11.59674121,1329.4,1329.3,3.82884839]
[1673351074474,19.11893121,1329.4,1329.3,3.82884839]
[1673351075432,11.59674121,1329.4,1329.3,3.82884839]
[1673351075623,4.07455121,1329.4,1329.3,3.82884839]
[1673351075789,4.00855121,1329.4,1329.3,3.82884839]
[1673351076943,11.53074121,1329.4,1329.3,3.82884839]
[1673351077148,11.59674121,1329.4,1329.3,3.82884839]
[1673351077398,4.07455121,1329.4,1329.3,3.82884839]
[1673351077591,4.00855121,1329.4,1329.3,3.82884839]
[1673351078625,4.00855121,1329.4,1329.3,2.13584839]
[1673351082890,11.53074121,1329.4,1329.3,2.13584839]
[1673351083204,11.59674121,1329.4,1329.3,2.13584839]
[1673351084347,19.11893121,1329.4,1329.3,2.13584839]
[1673351088189,11.59674121,1329.4,1329.2,16.89648386]
[1673351088399,11.59674121,1329.4,1329.2,15.19348386]
[1673351088851,11.59674121,1329.4,1329.2,1.02528386]
[1673351089068,11.59674121,1329.4,1329.2,0.95928386]
[1673351097236,19.11893121,1329.4,1329.2,0.95928386]
[1673351097552,19.68323121,1329.4,1329.2,0.95928386]
[1673351097967,27.20542121,1329.4,1329.2,0.95928386]
[1673351098179,19.68323121,1329.4,1329.2,0.95928386]
[1673351098501,27.20542121,1329.4,1329.2,0.95928386]
[1673351098719,3.79766064,1329.3,1329.2,0.95928386]
[1673351098926,26.36591064,1329.3,1329.2,0.95928386]
[1673351099142,26.43191064,1329.3,1329.2,0.95928386]
[1673351102722,11.38641064,1329.3,1329.2,0.95928386]
[1673351103127,18.90916064,1329.3,1329.2,0.95928386]
[1673351105262,26.43191064,1329.3,1329.2,0.95928386]
[1673351105573,26.99631064,1329.3,1329.2,0.95928386]
[1673351107950,4.42806064,1329.3,1329.2,0.95928386]
[1673351108218,4.36206064,1329.3,1329.2,0.95928386]
[1673351108728,3.79766064,1329.3,1329.2,0.95928386]
[1673351109677,11.32041064,1329.3,1329.2,0.95928386]
[1673351109857,11.38641064,1329.3,1329.2,0.95928386]
[1673351110261,18.90916064,1329.3,1329.2,0.95928386]
[1673351111103,11.38641064,1329.3,1329.2,0.95928386]
[1673351112653,18.90916064,1329.3,1329.2,0.95928386]
[1673351113669,11.38641064,1329.3,1329.2,0.95928386]
[1673351115041,3.86366064,1329.3,1329.2,0.95928386]
[1673351115203,3.79766064,1329.3,1329.2,1.08113462]
[1673351116562,15.88589057,1329.4,1329.2,1.08113462]
[1673351116563,0.84119057,1329.4,1329.2,1.08113462]
[1673351116772,15.09504121,1329.4,1329.2,1.08113462]
[1673351117030,22.68323121,1329.4,1329.2,1.08113462]
[1673351117643,22.68323121,1329.4,1329.2,0.95928386]
[1673351120559,30.20542121,1329.4,1329.2,0.95928386]
[1673351121351,7.07455121,1329.4,1329.2,0.95928386]
[1673351121502,4.07455121,1329.4,1329.2,0.95928386]
[1673351121862,4.00855121,1329.4,1329.2,0.95928386]
[1673351122200,4.00855121,1329.4,1329.2,2.00928262]
[1673351122912,11.53090121,1329.4,1329.2,2.00928262]
[1673351123074,11.59690121,1329.4,1329.2,2.00928262]
[1673351123705,0.27689057,1329.4,1329.2,2.00928262]
[1673351123923,0.21089057,1329.4,1329.2,9.53256262]
[1673351124268,0.21089057,1329.4,1329.2,9.59856262]
[1673351124478,0.21089057,1329.4,1329.3,2.99550308]
[1673351124686,1.90405342,1329.4,1329.3,4.42393139]
[1673351124880,0.21089057,1329.4,1329.3,3.2951502]
[1673351125094,0.21089057,1329.4,1329.3,5.7951502]
[1673351125281,1.90407914,1329.4,1329.3,5.8611502]
[1673351125494,0.21089057,1329.4,1329.3,5.8611502]
[1673351125941,1.90407613,1329.4,1329.3,5.8611502]
[1673351126276,1.90406056,1329.4,1329.3,6.98993139]
[1673351126450,0.21089057,1329.4,1329.3,10.96032198]
[1673351126647,1.67879383,1329.5,1329.4,4.19316999]
[1673351126856,1.67879383,1329.5,1329.4,13.84228349]
[1673351127096,10.89338901,1329.5,1329.4,8.58668014]
[1673351127310,3.43776901,1329.5,1329.4,8.58668014]
[1673351127526,3.37176901,1329.5,1329.4,8.58668014]
[1673351129308,1.67879383,1329.5,1329.4,5.03095825]
[1673351129521,1.67879383,1329.5,1329.4,3.45916999]
[1673351129738,1.67879383,1329.5,1329.4,3.39316999]
[1673351131799,1.67879383,1329.5,1329.4,5.25978324]
[1673351132009,1.67879383,1329.5,1329.4,3.45916999]
[1673351132274,1.67879383,1329.5,1329.4,5.2597708]
[1673351132454,1.67879383,1329.5,1329.4,6.39407607]
[1673351132850,1.67879383,1329.5,1329.4,4.52746232]
[1673351133058,1.67879383,1329.5,1329.4,6.32807254]
[1673351133269,1.67879383,1329.5,1329.4,6.39407162]
[1673351133689,1.67879383,1329.5,1329.4,6.3940765]
[1673351134370,3.37176901,1329.5,1329.4,4.52746232]
[1673351134543,3.37176901,1329.5,1329.4,4.46146232]
[1673351134754,3.74452109,1329.5,1329.4,4.46146232]
[1673351137408,3.74452109,1329.5,1329.4,6.32808974]
[1673351137596,3.74452109,1329.5,1329.4,4.52746232]
[1673351137799,3.74452109,1329.5,1329.4,6.32809758]
[1673351138043,3.74452109,1329.5,1329.4,6.39409758]
[1673351140226,3.74452109,1329.5,1329.4,6.39409758]
[1673351140644,3.74452109,1329.5,1329.4,4.69409758]
[1673351140857,3.74452109,1329.5,1329.4,4.62809758]
[1673351141826,3.74452109,1329.5,1329.4,2.76146232]
[1673351143195,3.74452109,1329.5,1329.4,4.62812499]
[1673351143405,3.74452109,1329.5,1329.4,2.76146232]
[1673351145898,3.74452109,1329.5,1329.4,1.69316999]
[1673351146421,6.00208346,1329.5,1329.4,1.69316999]
[1673351146721,6.06808346,1329.5,1329.4,1.69316999]
[1673351146889,3.81052109,1329.5,1329.4,1.69316999]
[1673351147044,3.74452109,1329.5,1329.4,1.69316999]
[1673351147463,3.74452109,1329.5,1329.4,2.2919381]
[1673351150742,3.74452109,1329.5,1329.4,4.15860625]
[1673351151877,2.05154591,1329.5,1329.4,4.15860625]
[1673351152530,2.05154591,1329.5,1329.4,11.68079625]
[1673351152742,2.05154591,1329.5,1329.4,11.74679625]
[1673351156627,2.05154591,1329.5,1329.4,12.87543759]
[1673351156831,2.05154591,1329.5,1329.4,11.74679625]
[1673351157303,2.05154591,1329.5,1329.4,12.87543759]
[1673351157696,2.05154591,1329.5,1329.4,11.74679625]
[1673351157933,2.05154591,1329.5,1329.4,12.87543759]
[1673351158642,2.05154591,1329.5,1329.4,19.26898625]
[1673351160351,2.05154591,1329.5,1329.4,20.39762759]
[1673351163189,2.05154591,1329.5,1329.4,27.91981759]
[1673351165155,2.05154591,1329.5,1329.4,29.6127796]
[1673351166722,2.05154591,1329.5,1329.4,27.91981759]
[1673351169449,2.05154591,1329.5,1329.4,29.61281759]
[1673351170950,2.05154591,1329.5,1329.4,31.3057796]
[1673351171162,2.05154591,1329.5,1329.4,34.10586243]
[1673351171388,2.05154591,1329.5,1329.4,31.3057796]
[1673351171985,2.05154591,1329.5,1329.4,29.61281759]
[1673351172379,2.05154591,1329.5,1329.4,31.3057796]
[1673351172848,2.05154591,1329.5,1329.4,29.61281759]
[1673351174908,2.05154591,1329.5,1329.4,32.41290042]
[1673351175128,2.05154591,1329.5,1329.4,27.91981759]
[1673351178213,2.05154591,1329.5,1329.4,30.71990042]
[1673351178528,2.05154591,1329.5,1329.4,27.91981759]
[1673351182473,2.05154591,1329.5,1329.4,26.05314944]
[1673351183168,2.05154591,1329.5,1329.4,27.74611145]
[1673351184255,2.04931257,1329.5,1329.4,27.74398249]
[1673351184587,2.04931257,1329.5,1329.4,27.74400017]
[1673351184747,2.04931257,1329.5,1329.4,26.61747011]
[1673351185175,2.04931257,1329.5,1329.4,27.74408449]
[1673351185490,2.04931257,1329.5,1329.4,26.61747011]
[1673351186302,2.04931257,1329.5,1329.4,28.87503248]
[1673351186514,2.04931257,1329.5,1329.4,30.57803248]
[1673351186876,2.04931257,1329.5,1329.4,32.45914244]
[1673351187019,2.04931257,1329.5,1329.4,29.63718948]
[1673351187231,2.04931257,1329.5,1329.4,28.88507047]
[1673351187741,2.04931257,1329.5,1329.4,35.50468407]
[1673351187955,2.04931257,1329.5,1329.4,38.3047669]
[1673351188208,2.04931257,1329.5,1329.4,35.48281394]
[1673351188616,2.04931257,1329.5,1329.4,39.05688591]
[1673351188807,2.04931257,1329.5,1329.4,36.23493295]
[1673351190214,2.04931257,1329.5,1329.4,39.23493295]
[1673351190477,2.04931257,1329.5,1329.4,43.75988591]
[1673351190687,2.04931257,1329.5,1329.4,43.75538968]
[1673351192857,2.04931257,1329.5,1329.4,42.62265942]
[1673351193045,2.04931257,1329.5,1329.4,39.24026673]
[1673351193046,0.37275208,1329.5,1329.4,39.24026673]
[1673351193368,0.37275208,1329.5,1329.4,39.47026673]
[1673351193782,0.37275208,1329.5,1329.4,42.29221969]
[1673351195389,0.37275208,1329.5,1329.4,42.85651969]
[1673351195604,0.37275208,1329.5,1329.4,42.29221969]
[1673351195970,2.08e-06,1329.5,1329.4,42.29221969]
[1673351196186,8.4031,1329.8,1329.5,2.5]
[1673351196447,8.4031,1329.8,1329.6,34.77942543]
[1673351196662,8.4031,1329.8,1329.7,1.86611374]
[1673351196817,8.4031,1329.8,1329.7,26.92758374]
[1673351197024,8.4031,1329.8,1329.7,25.12747]
[1673351197238,0.066,1329.8,1329.7,22.62747]
[1673351197448,0.5641,1329.9,1329.7,26.20524145]
[1673351198206,25.28867015,1330.0,1329.7,26.20524145]
[1673351208174,23.03110778,1330.0,1329.7,26.20524145]
[1673351212080,21.3381326,1330.0,1329.7,27.33135314]
[1673351212303,21.3381326,1330.0,1329.8,2.5]
[1673351212500,21.3381326,1330.0,1329.8,5.48313531]